[Event "Championnat d'Europe Rapide"]
[Date "2024.12.08"]
[White "Papasimakopoulos, Alexandros"]
[Black "Siekanska, Maria"]
[WhiteElo "2379"]
[BlackElo "2080"]
[Round "11.36"]
[Result "0-1"]
[TimeControl "900+10"]

1. d4 {[%emt 00:00:02] [%clk 00:15:18]} d5 {[%emt 00:00:02] [%clk 00:15:19]} 2.
c4 {[%emt 00:00:01] [%clk 00:15:27]} e6 {[%emt 00:00:01] [%clk 00:15:28]} 3. Nc3
{[%emt 00:00:01] [%clk 00:15:36]} c6 {[%emt 00:00:01] [%clk 00:15:37]} 4. e3
{[%emt 00:00:10] [%clk 00:15:35]} Nf6 {[%emt 00:00:02] [%clk 00:15:45]} 5. Nf3
{[%emt 00:00:02] [%clk 00:15:44]} Nbd7 {[%emt 00:00:29] [%clk 00:15:26]} 6. Bd3
{[%emt 00:00:03] [%clk 00:15:50]} dxc4 {[%emt 00:00:08] [%clk 00:15:28]} 7. Bxc4
{[%emt 00:00:02] [%clk 00:15:58]} b5 {[%emt 00:00:02] [%clk 00:15:37]} 8. Be2
{[%emt 00:00:05] [%clk 00:16:03]} Bb7 {[%emt 00:00:13] [%clk 00:15:34]} 9. O-O
{[%emt 00:00:04] [%clk 00:16:09]} Bd6 {[%emt 00:00:04] [%clk 00:15:41]} 10. b3
{[%emt 00:00:57] [%clk 00:15:22]} O-O {[%emt 00:00:08] [%clk 00:15:43]} 11. Bb2
{[%emt 00:00:01] [%clk 00:15:31]} a6 {[%emt 00:00:36] [%clk 00:15:17]} 12. a4
{[%emt 00:00:01] [%clk 00:15:40]} b4 {[%emt 00:00:28] [%clk 00:14:59]} 13. Nb1
{[%emt 00:00:02] [%clk 00:15:48]} c5 {[%emt 00:00:15] [%clk 00:14:54]} 14. Nbd2
{[%emt 00:00:01] [%clk 00:15:57]} cxd4 {[%emt 00:00:47] [%clk 00:14:17]} 15. Nc4
{[%emt 00:00:01] [%clk 00:16:05]} Bc7 {[%emt 00:00:07] [%clk 00:14:20]} 16. Qxd4
{[%emt 00:00:11] [%clk 00:16:03]} Qe7 {[%emt 00:00:52] [%clk 00:13:38]} 17. Rac1
{[%emt 00:00:41] [%clk 00:15:32]} Rac8 {[%emt 00:00:02] [%clk 00:13:46]} 18. Qh4
{[%emt 00:00:13] [%clk 00:15:28]} Nc5 {[%emt 00:00:43] [%clk 00:13:14]} 19. Nd4
{[%emt 00:01:33] [%clk 00:14:05]} Nd5 {[%emt 00:00:40] [%clk 00:12:44]} 20. Qh3
{[%emt 00:00:57] [%clk 00:13:18]} Rfd8 {[%emt 00:00:15] [%clk 00:12:40]} 21.
Rfd1 {[%emt 00:00:30] [%clk 00:12:57]} Ne4 {[%emt 00:01:04] [%clk 00:11:46]} 22.
Bd3 {[%emt 00:00:26] [%clk 00:12:42]} Ng5 {[%emt 00:00:38] [%clk 00:11:18]} 23.
Qh5 {[%emt 00:00:10] [%clk 00:12:39]} g6 {[%emt 00:00:20] [%clk 00:11:11]} 24.
Qh6 {[%emt 00:00:09] [%clk 00:12:39]} e5 {[%emt 00:00:28] [%clk 00:10:53]} 25.
Ne2 {[%emt 00:03:00] [%clk 00:09:48]} f6 {[%emt 00:00:38] [%clk 00:10:25]} 26.
Ng3 {[%emt 00:00:50] [%clk 00:09:09]} Rd7 {[%emt 00:01:39] [%clk 00:08:56]} 27.
Ne4 {[%emt 00:01:49] [%clk 00:07:29]} Nxe4 {[%emt 00:00:20] [%clk 00:08:46]} 28.
Bxe4 {[%emt 00:00:02] [%clk 00:07:37]} Rcd8 {[%emt 00:00:02] [%clk 00:08:54]}
29. Re1 {[%emt 00:00:24] [%clk 00:07:23]} f5 {[%emt 00:00:55] [%clk 00:08:10]}
30. Bf3 {[%emt 00:00:07] [%clk 00:07:25]} e4 {[%emt 00:00:42] [%clk 00:07:38]}
31. Be2 {[%emt 00:00:06] [%clk 00:07:30]} Nc3 {[%emt 00:01:55] [%clk 00:05:53]}
32. Bxc3 {[%emt 00:00:09] [%clk 00:07:31]} bxc3 {[%emt 00:00:01] [%clk
00:06:02]} 33. Rxc3 {[%emt 00:00:02] [%clk 00:07:39]} Qb4 {[%emt 00:00:11] [%clk
00:06:01]} 34. Rcc1 {[%emt 00:01:34] [%clk 00:06:14]} Qxb3 {[%emt 00:00:41]
[%clk 00:05:31]} 35. Rb1 {[%emt 00:00:08] [%clk 00:06:16]} Qc2 {[%emt 00:00:17]
[%clk 00:05:25]} 36. g3 {[%emt 00:01:30] [%clk 00:04:55]} Bd5 {[%emt 00:00:10]
[%clk 00:05:25]} 37. Nb6 {[%emt 00:00:58] [%clk 00:04:07]} Bxb6 {[%emt 00:00:36]
[%clk 00:04:59]} 38. Rxb6 {[%emt 00:00:01] [%clk 00:04:16]} Qxa4 {[%emt
00:00:17] [%clk 00:04:52]} 39. Rxa6 {[%emt 00:00:08] [%clk 00:04:18]} Qb4 {[%emt
00:00:02] [%clk 00:05:00]} 40. Raa1 {[%emt 00:00:13] [%clk 00:04:15]} Bf7 {[%emt
00:00:38] [%clk 00:04:32]} 41. h4 {[%emt 00:00:33] [%clk 00:03:52]} Rd2 {[%emt
00:00:30] [%clk 00:04:11]} 42. Qf4 {[%emt 00:00:30] [%clk 00:03:32]} Qb8 {[%emt
00:00:21] [%clk 00:04:01]} 43. Qg5 {[%emt 00:00:15] [%clk 00:03:26]} Rc8 {[%emt
00:00:31] [%clk 00:03:41]} 44. Rad1 {[%emt 00:00:15] [%clk 00:03:22]} Qb4 {[%emt
00:00:22] [%clk 00:03:29]} 45. Bf1 {[%emt 00:00:56] [%clk 00:02:35]} Rcc2 {[%emt
00:01:41] [%clk 00:01:59]} 46. h5 {[%emt 00:00:04] [%clk 00:02:40]} Qd6 {[%emt
00:00:48] [%clk 00:01:21]} 47. Rxd2 {[%emt 00:00:43] [%clk 00:02:08]} Rxd2
{[%emt 00:00:01] [%clk 00:01:30]} 48. Rc1 {[%emt 00:00:18] [%clk 00:01:59]} Qd8
{[%emt 00:00:26] [%clk 00:01:15]} 49. Qf4 {[%emt 00:00:20] [%clk 00:01:48]} Qd6
{[%emt 00:00:57] [%clk 00:00:29]} 50. Rc8+ {[%emt 00:01:05] [%clk 00:00:53]} Kg7
{[%emt 00:00:01] [%clk 00:00:38]} 51. h6+ {[%emt 00:00:05] [%clk 00:00:58]} Kf6
{[%clk 00:00:47]} 52. Rh8 {[%emt 00:00:29] [%clk 00:00:39]} Qxf4 {[%emt
00:00:18] [%clk 00:00:40]} 53. gxf4 {[%emt 00:00:06] [%clk 00:00:42]} Rd1 {[%emt
00:00:05] [%clk 00:00:45]} 54. Kg2 {[%emt 00:00:04] [%clk 00:00:48]} g5 {[%emt
00:00:02] [%clk 00:00:53]} 55. fxg5+ {[%emt 00:00:43] [%clk 00:00:15]} Kxg5
{[%emt 00:00:01] [%clk 00:01:02]} 56. Rxh7 {[%emt 00:00:09] [%clk 00:00:17]} Bh5
{[%clk 00:01:11]} 57. Rh8 {[%emt 00:00:16] [%clk 00:00:11]} Bf3+ {[%emt
00:00:03] [%clk 00:01:19]} 58. Kg1 {[%emt 00:00:03] [%clk 00:00:18]} Be2 {[%emt
00:00:13] [%clk 00:01:16]} 59. h7 {[%emt 00:00:07] [%clk 00:00:21]} Rxf1+ {[%emt
00:00:03] [%clk 00:01:23]} 60. Kg2 {[%clk 00:00:30]} Kh6 {[%emt 00:00:07] [%clk
00:01:26]} 61. Rf8 {[%emt 00:00:02] [%clk 00:00:38]} Kxh7 {[%emt 00:00:04] [%clk
00:01:33]} 62. Rxf5 {[%emt 00:00:01] [%clk 00:00:47]} Ra1 {[%emt 00:00:04] [%clk
00:01:38]} 63. Rc5 {[%emt 00:00:14] [%clk 00:00:42]} Kg6 {[%emt 00:00:16] [%clk
00:01:32]} 64. Rc2 {[%emt 00:00:06] [%clk 00:00:46]} Bf3+ {[%emt 00:00:12] [%clk
00:01:30]} 65. Kg3 {[%emt 00:00:02] [%clk 00:00:54]} Kf5 {[%emt 00:00:09] [%clk
00:01:31]} 66. Rc5+ {[%emt 00:00:01] [%clk 00:01:03]} Ke6 {[%clk 00:01:41]} 67.
Rc6+ {[%emt 00:00:16] [%clk 00:00:57]} Kd5 {[%emt 00:00:02] [%clk 00:01:49]} 68.
Rc2 {[%emt 00:00:07] [%clk 00:01:00]} Ra4 {[%emt 00:00:35] [%clk 00:01:24]} 69.
Kf4 {[%emt 00:00:25] [%clk 00:00:45]} Rc4 {[%emt 00:00:07] [%clk 00:01:27]} 70.
Rd2+ {[%emt 00:00:19] [%clk 00:00:37]} Kc5 {[%clk 00:01:36]} 71. Rb2 {[%emt
00:00:06] [%clk 00:00:40]} Rc3 {[%emt 00:00:09] [%clk 00:01:37]} 72. Rd2 {[%emt
00:00:06] [%clk 00:00:44]} Kc4 {[%emt 00:00:23] [%clk 00:01:24]} 73. Rd4+ {[%emt
00:00:18] [%clk 00:00:36]} Kb3 {[%emt 00:00:01] [%clk 00:01:33]} 74. Rxe4 {[%emt
00:00:01] [%clk 00:00:46]} Bxe4 {[%clk 00:01:42]} 75. Kxe4 {[%emt 00:00:01]
[%clk 00:00:55]} Kc4 {[%emt 00:00:02] [%clk 00:01:49]} 76. Ke5 {[%emt 00:00:25]
[%clk 00:00:40]} Kc5 {[%emt 00:00:11] [%clk 00:01:48]} 77. Ke6 {[%emt 00:00:06]
[%clk 00:00:44]} Kc6 {[%emt 00:00:08] [%clk 00:01:50]} 78. Ke7 {[%emt 00:00:43]
[%clk 00:00:11]} Kd5 {[%emt 00:00:02] [%clk 00:01:57]} 79. Kf6 {[%emt 00:00:10]
[%clk 00:00:11]} Ke4 {[%emt 00:00:01] [%clk 00:02:06]} 80. Kg5 {[%emt 00:00:10]
[%clk 00:00:11]} Kf3 {[%emt 00:00:03] [%clk 00:02:13]} 81. Kf5 {[%emt 00:00:01]
[%clk 00:00:21]} Rc5+ {[%emt 00:00:09] [%clk 00:02:14]} 82. Ke6 {[%clk
00:00:30]} Rc2 {[%emt 00:00:23] [%clk 00:02:01]} 83. Kf5 {[%emt 00:00:01] [%clk
00:00:39]} Rxf2 {[%emt 00:00:07] [%clk 00:02:04]} 84. e4 {[%clk 00:00:48]} Ke3+
{[%emt 00:00:01] [%clk 00:02:13]} 0-1

[Site "Europe Echecs"]

[Event "Championnat d'Europe Rapide"]
[Date "2024.12.08"]
[White "Maier, Christian"]
[Black "Savanovic, Aleksandar"]
[WhiteElo "2235"]
[BlackElo "2354"]
[Round "11.37"]
[Result "0-1"]
[TimeControl "900+10"]

1. e4 {[%emt 00:05:18] [%clk 00:15:17]} e5 {[%emt 00:00:06] [%clk 00:15:14]} 2.
Nf3 {[%emt 00:00:03] [%clk 00:15:25]} Nc6 {[%emt 00:00:04] [%clk 00:15:20]} 3.
Bb5 {[%emt 00:00:03] [%clk 00:15:31]} a6 {[%emt 00:00:02] [%clk 00:15:28]} 4.
Ba4 {[%emt 00:00:02] [%clk 00:15:39]} Nf6 {[%emt 00:00:03] [%clk 00:15:35]} 5.
d3 {[%emt 00:00:04] [%clk 00:15:46]} d6 {[%emt 00:00:02] [%clk 00:15:42]} 6. O-O
{[%emt 00:00:15] [%clk 00:15:41]} b5 {[%emt 00:00:07] [%clk 00:15:46]} 7. Bb3
{[%emt 00:00:01] [%clk 00:15:49]} Na5 {[%emt 00:00:01] [%clk 00:15:55]} 8. Nc3
{[%emt 00:00:02] [%clk 00:15:57]} Be7 {[%emt 00:00:26] [%clk 00:15:39]} 9. Re1
{[%emt 00:00:12] [%clk 00:15:55]} O-O {[%emt 00:00:05] [%clk 00:15:45]} 10. h3
{[%emt 00:00:25] [%clk 00:15:40]} Bb7 {[%emt 00:00:07] [%clk 00:15:48]} 11. Bd2
{[%emt 00:00:17] [%clk 00:15:33]} Nxb3 {[%emt 00:01:29] [%clk 00:14:29]} 12.
axb3 {[%emt 00:00:01] [%clk 00:15:42]} Nd7 {[%emt 00:00:28] [%clk 00:14:11]} 13.
b4 {[%emt 00:00:25] [%clk 00:15:27]} f5 {[%emt 00:00:14] [%clk 00:14:07]} 14. d4
{[%emt 00:00:37] [%clk 00:15:00]} fxe4 {[%emt 00:00:48] [%clk 00:13:30]} 15.
Nxe4 {[%emt 00:00:02] [%clk 00:15:08]} Bxe4 {[%emt 00:00:02] [%clk 00:13:38]}
16. Rxe4 {[%emt 00:00:03] [%clk 00:15:15]} d5 {[%emt 00:00:03] [%clk 00:13:46]}
17. Re1 {[%emt 00:01:16] [%clk 00:14:09]} e4 {[%emt 00:00:02] [%clk 00:13:53]}
18. Nh2 {[%emt 00:00:15] [%clk 00:14:04]} Bd6 {[%emt 00:00:29] [%clk 00:13:34]}
19. Rf1 {[%emt 00:00:58] [%clk 00:13:16]} Qe7 {[%emt 00:01:11] [%clk 00:12:32]}
20. c3 {[%emt 00:00:11] [%clk 00:13:15]} Rf5 {[%emt 00:00:51] [%clk 00:11:51]}
21. Qe2 {[%emt 00:00:44] [%clk 00:12:42]} Bxh2+ {[%emt 00:01:20] [%clk
00:10:41]} 22. Kxh2 {[%emt 00:00:02] [%clk 00:12:50]} Qd6+ {[%clk 00:10:50]} 23.
Kh1 {[%emt 00:01:23] [%clk 00:11:37]} Raf8 {[%emt 00:00:04] [%clk 00:10:56]} 24.
Be3 {[%emt 00:00:02] [%clk 00:11:45]} R8f6 {[%emt 00:00:55] [%clk 00:10:11]} 25.
Rg1 {[%emt 00:01:53]} Nf8 {[%clk 00:10:10]} 26. Raf1 {[%emt 00:00:08] [%clk
00:10:15]} Ng6 {[%emt 00:00:02] [%clk 00:10:17]} 27. f3 {[%emt 00:01:05] [%clk
00:09:20]} exf3 {[%emt 00:00:02] [%clk 00:10:25]} 28. Rxf3 {[%emt 00:00:24]
[%clk 00:09:07]} Rxf3 {[%emt 00:00:02] [%clk 00:10:34]} 29. gxf3 {[%emt
00:00:02] [%clk 00:09:15]} Qe6 {[%emt 00:00:01] [%clk 00:10:42]} 30. Rg4 {[%emt
00:00:23] [%clk 00:09:02]} h5 {[%emt 00:02:48] [%clk 00:08:04]} 31. Rg3 {[%emt
00:00:06] [%clk 00:09:06]} Nh4 {[%emt 00:00:04] [%clk 00:08:10]} 32. f4 {[%emt
00:01:02] [%clk 00:08:15]} Qe4+ {[%emt 00:00:42] [%clk 00:07:38]} 33. Kh2 {[%emt
00:00:03] [%clk 00:08:22]} Nf5 {[%emt 00:00:08] [%clk 00:07:40]} 0-1

[Site "Europe Echecs"]

[Event "Championnat d'Europe Rapide"]
[Date "2024.12.08"]
[White "Pultinevicius, Paulius"]
[Black "Robis, Dimitrios"]
[WhiteElo "2579"]
[BlackElo "1893"]
[Round "11.38"]
[Result "1-0"]
[TimeControl "900+10"]

1. e4 {[%clk 00:15:18]} c5 {[%emt 00:00:04] [%clk 00:15:18]} 2. Nf3 {[%clk
00:15:27]} e6 {[%emt 00:00:02] [%clk 00:15:25]} 3. d4 {[%emt 00:00:02] [%clk
00:15:35]} cxd4 {[%emt 00:00:02] [%clk 00:15:33]} 4. Nxd4 {[%emt 00:00:02] [%clk
00:15:44]} Nc6 {[%emt 00:00:02] [%clk 00:15:40]} 5. Nc3 {[%emt 00:00:02] [%clk
00:15:52]} Qc7 {[%emt 00:00:05] [%clk 00:15:45]} 6. Be3 {[%emt 00:00:03] [%clk
00:16:00]} a6 {[%emt 00:00:04] [%clk 00:15:51]} 7. Qf3 {[%emt 00:00:02] [%clk
00:16:07]} Nf6 {[%emt 00:02:12] [%clk 00:13:49]} 8. Qg3 {[%emt 00:00:03] [%clk
00:16:14]} Qxg3 {[%emt 00:00:11] [%clk 00:13:48]} 9. hxg3 {[%emt 00:03:26]} Ng4
{[%clk 00:10:34]} 10. Nxc6 {[%emt 00:00:02] [%clk 00:16:31]} Nxe3 {[%emt
00:00:58] [%clk 00:09:46]} 11. Nd4 {[%emt 00:00:01] [%clk 00:16:40]} Nxf1 {[%emt
00:00:20] [%clk 00:09:36]} 12. Kxf1 {[%emt 00:00:01] [%clk 00:16:48]} Bc5 {[%emt
00:00:33] [%clk 00:09:12]} 13. Rd1 {[%emt 00:00:03] [%clk 00:16:55]} b5 {[%emt
00:02:07] [%clk 00:07:15]} 14. Rh5 {[%emt 00:00:03] [%clk 00:17:02]} Be7 {[%emt
00:01:01] [%clk 00:06:24]} 15. a4 {[%emt 00:00:08] [%clk 00:17:04]} g6 {[%emt
00:00:19] [%clk 00:06:15]} 16. Rh1 {[%emt 00:00:03] [%clk 00:17:11]} b4 {[%emt
00:00:33] [%clk 00:05:53]} 17. Nce2 {[%emt 00:00:01] [%clk 00:17:20]} Bb7 {[%emt
00:00:15] [%clk 00:05:48]} 18. f3 {[%emt 00:00:01] [%clk 00:17:29]} d5 {[%emt
00:00:13] [%clk 00:05:46]} 19. e5 {[%emt 00:00:03] [%clk 00:17:36]} O-O {[%emt
00:00:52] [%clk 00:05:04]} 20. f4 {[%emt 00:00:04] [%clk 00:17:42]} h5 {[%emt
00:00:11] [%clk 00:05:02]} 21. Kf2 {[%emt 00:00:06] [%clk 00:17:46]} Kg7 {[%emt
00:00:02] [%clk 00:05:10]} 22. g4 {[%emt 00:00:05] [%clk 00:17:51]} hxg4 {[%emt
00:00:14] [%clk 00:05:06]} 23. Kg3 {[%clk 00:18:01]} Rh8 {[%emt 00:00:18] [%clk
00:04:58]} 24. Kxg4 {[%emt 00:00:02] [%clk 00:18:09]} Rxh1 {[%emt 00:00:03]
[%clk 00:05:04]} 25. Rxh1 {[%clk 00:18:18]} Rc8 {[%emt 00:00:22] [%clk
00:04:53]} 26. Kf3 {[%emt 00:00:02] [%clk 00:18:27]} a5 {[%emt 00:00:26] [%clk
00:04:37]} 27. g4 {[%emt 00:00:02] [%clk 00:18:35]} Rh8 {[%emt 00:01:13] [%clk
00:03:34]} 28. Rxh8 {[%emt 00:00:04] [%clk 00:18:41]} Kxh8 {[%emt 00:00:01]
[%clk 00:03:42]} 29. f5 {[%emt 00:00:05] [%clk 00:18:48]} gxf5 {[%emt 00:01:03]
[%clk 00:02:48]} 30. gxf5 {[%emt 00:00:01] [%clk 00:18:57]} exf5 {[%emt
00:01:04] [%clk 00:01:54]} 31. Ng3 {[%emt 00:00:01] [%clk 00:19:06]} Kg8 {[%emt
00:00:52] [%clk 00:01:13]} 32. Ngxf5 {[%emt 00:00:01] [%clk 00:19:14]} Bg5
{[%emt 00:00:23] [%clk 00:01:00]} 33. Nd6 {[%emt 00:00:04] [%clk 00:19:19]} Ba6
{[%emt 00:00:21] [%clk 00:00:49]} 34. Nc6 {[%emt 00:00:03] [%clk 00:19:27]} b3
{[%emt 00:00:12] [%clk 00:00:47]} 35. cxb3 {[%emt 00:00:02] [%clk 00:19:35]} Bc1
{[%emt 00:00:06] [%clk 00:00:50]} 36. Nxa5 {[%emt 00:00:02] [%clk 00:19:44]}
Bxb2 {[%emt 00:00:06] [%clk 00:00:54]} 37. Nc6 {[%emt 00:00:02] [%clk 00:19:52]}
Bd3 {[%emt 00:00:22] [%clk 00:00:41]} 38. b4 {[%emt 00:00:02] [%clk 00:20:00]}
Kf8 {[%emt 00:00:34] [%clk 00:00:17]} 39. b5 {[%emt 00:00:01] [%clk 00:20:09]}
Ba3 {[%emt 00:00:12] [%clk 00:00:15]} 40. b6 {[%emt 00:00:02] [%clk 00:20:17]}
Ba6 {[%emt 00:00:08] [%clk 00:00:17]} 41. b7 {[%emt 00:00:02] [%clk 00:20:25]}
Bxb7 {[%emt 00:00:13] [%clk 00:00:14]} 42. Nxb7 {[%emt 00:00:01] [%clk
00:20:34]} Ke8 {[%emt 00:00:07] [%clk 00:00:17]} 43. a5 {[%emt 00:00:02] [%clk
00:20:42]} Kd7 {[%emt 00:00:07] [%clk 00:00:20]} 44. Nd4 {[%emt 00:00:01] [%clk
00:20:51]} Kc8 {[%emt 00:00:17] [%clk 00:00:14]} 45. Nd6+ {[%emt 00:00:02] [%clk
00:20:59]} Kb8 {[%emt 00:00:05] [%clk 00:00:19]} 46. Nc6+ {[%emt 00:00:02] [%clk
00:21:08]} Ka8 {[%emt 00:00:04] [%clk 00:00:25]} 47. Nxf7 {[%emt 00:00:02] [%clk
00:21:16]} Kb7 {[%emt 00:00:03] [%clk 00:00:32]} 48. Nd4 {[%emt 00:00:02] [%clk
00:21:24]} Ka6 {[%emt 00:00:04] [%clk 00:00:39]} 49. Nb3 {[%emt 00:00:01] [%clk
00:21:33]} 1-0

[Site "Europe Echecs"]

[Event "Championnat d'Europe Rapide"]
[Date "2024.12.08"]
[White "Zawadzka, Jolanta"]
[Black "Fressinet, Laurent"]
[WhiteElo "2331"]
[BlackElo "2588"]
[Round "11.39"]
[Result "0-1"]
[TimeControl "900+10"]

1. e4 {[%clk 00:15:19]} c5 {[%emt 00:00:02] [%clk 00:15:18]} 2. Nf3 {[%emt
00:00:02] [%clk 00:15:27]} Nc6 {[%emt 00:00:02] [%clk 00:15:26]} 3. d4 {[%emt
00:00:06] [%clk 00:15:31]} cxd4 {[%emt 00:00:03] [%clk 00:15:33]} 4. Nxd4 {[%emt
00:00:02] [%clk 00:15:39]} Nf6 {[%emt 00:00:13] [%clk 00:15:30]} 5. Nc3 {[%emt
00:00:03] [%clk 00:15:47]} e5 {[%emt 00:00:01] [%clk 00:15:38]} 6. Ndb5 {[%emt
00:00:06] [%clk 00:15:51]} d6 {[%emt 00:00:02] [%clk 00:15:46]} 7. Bg5 {[%emt
00:00:04] [%clk 00:15:57]} a6 {[%emt 00:00:02] [%clk 00:15:54]} 8. Na3 {[%emt
00:00:01] [%clk 00:16:06]} b5 {[%emt 00:00:02] [%clk 00:16:02]} 9. Nd5 {[%emt
00:00:03] [%clk 00:16:13]} Be7 {[%emt 00:00:02] [%clk 00:16:10]} 10. Bxf6 {[%emt
00:00:04] [%clk 00:16:19]} Bxf6 {[%emt 00:00:02] [%clk 00:16:18]} 11. c4 {[%emt
00:00:06] [%clk 00:16:23]} b4 {[%emt 00:00:02] [%clk 00:16:26]} 12. Nc2 {[%emt
00:00:01] [%clk 00:16:32]} a5 {[%emt 00:00:02] [%clk 00:16:34]} 13. g3 {[%emt
00:00:12] [%clk 00:16:29]} h5 {[%emt 00:00:03] [%clk 00:16:41]} 14. h4 {[%emt
00:01:32] [%clk 00:15:06]} g6 {[%emt 00:00:04] [%clk 00:16:47]} 15. b3 {[%emt
00:01:10] [%clk 00:14:06]} Bg7 {[%emt 00:00:14] [%clk 00:16:43]} 16. Bg2 {[%emt
00:00:08] [%clk 00:14:08]} O-O {[%emt 00:00:28] [%clk 00:16:26]} 17. O-O {[%emt
00:00:11] [%clk 00:14:06]} Bb7 {[%emt 00:00:31] [%clk 00:16:05]} 18. Qe2 {[%emt
00:00:15] [%clk 00:14:01]} Nd4 {[%emt 00:01:07] [%clk 00:15:09]} 19. Nxd4 {[%emt
00:00:10] [%clk 00:14:01]} exd4 {[%emt 00:00:02] [%clk 00:15:17]} 20. Rad1
{[%emt 00:00:23] [%clk 00:13:47]} Re8 {[%emt 00:00:15] [%clk 00:15:13]} 21. Qd3
{[%emt 00:00:32] [%clk 00:13:25]} Bxd5 {[%emt 00:02:05] [%clk 00:13:18]} 22.
cxd5 {[%emt 00:00:17] [%clk 00:13:18]} Rc8 {[%emt 00:00:16] [%clk 00:13:12]} 23.
Rfe1 {[%emt 00:03:20] [%clk 00:10:07]} Rc3 {[%emt 00:00:08] [%clk 00:13:14]} 24.
Qb5 {[%emt 00:00:13] [%clk 00:10:05]} Rc5 {[%emt 00:00:06] [%clk 00:13:18]} 25.
Qd3 {[%emt 00:00:04] [%clk 00:10:11]} Qb6 {[%emt 00:00:24] [%clk 00:13:03]} 26.
Bh3 {[%emt 00:00:43] [%clk 00:09:38]} Rc3 {[%emt 00:00:05] [%clk 00:13:09]} 27.
Qd2 {[%emt 00:00:14] [%clk 00:09:34]} d3 {[%emt 00:02:00] [%clk 00:11:20]} 28.
Rc1 {[%emt 00:01:16] [%clk 00:08:27]} Qd4 {[%emt 00:01:43] [%clk 00:09:47]} 29.
Bf1 {[%emt 00:01:55] [%clk 00:06:42]} Bh6 {[%emt 00:01:11] [%clk 00:08:45]} 30.
Qxh6 {[%emt 00:00:18] [%clk 00:06:35]} d2 {[%emt 00:00:02] [%clk 00:08:53]} 31.
Rcd1 {[%emt 00:00:28] [%clk 00:06:17]} Rxg3+ {[%emt 00:00:19] [%clk 00:08:44]}
0-1

[Site "Europe Echecs"]

[Event "Championnat d'Europe Rapide"]
[Date "2024.12.08"]
[White "Mastrovasilis, Dimitrios"]
[Black "Vyval, Volodymyr"]
[WhiteElo "2537"]
[BlackElo "2269"]
[Round "11.40"]
[Result "1-0"]
[TimeControl "900+10"]

1. e4 {[%emt 00:00:02] [%clk 00:15:17]} c5 {[%emt 00:00:02] [%clk 00:15:19]} 2.
Nf3 {[%emt 00:00:03] [%clk 00:15:24]} d6 {[%emt 00:00:05] [%clk 00:15:24]} 3. d4
{[%emt 00:00:11] [%clk 00:15:23]} cxd4 {[%emt 00:00:02] [%clk 00:15:33]} 4. Nxd4
{[%emt 00:00:02] [%clk 00:15:30]} Nf6 {[%clk 00:15:42]} 5. f3 {[%emt 00:00:03]
[%clk 00:15:38]} e5 {[%emt 00:00:03] [%clk 00:15:49]} 6. Nb3 {[%emt 00:00:02]
[%clk 00:15:46]} d5 {[%emt 00:00:02] [%clk 00:15:58]} 7. Bg5 {[%emt 00:00:02]
[%clk 00:15:53]} d4 {[%emt 00:00:02] [%clk 00:16:07]} 8. c3 {[%emt 00:00:05]
[%clk 00:15:58]} Nc6 {[%emt 00:00:02] [%clk 00:16:15]} 9. Bb5 {[%emt 00:00:05]
[%clk 00:16:03]} h6 {[%emt 00:00:02] [%clk 00:16:23]} 10. Bh4 {[%emt 00:00:15]
[%clk 00:15:58]} Qb6 {[%emt 00:00:22] [%clk 00:16:11]} 11. Bxc6+ {[%emt
00:05:14] [%clk 00:10:54]} bxc6 {[%emt 00:00:02] [%clk 00:16:19]} 12. cxd4
{[%emt 00:02:05] [%clk 00:08:59]} Ba6 {[%emt 00:00:13] [%clk 00:16:16]} 13. Bf2
{[%emt 00:01:05] [%clk 00:08:04]} O-O-O {[%emt 00:00:42] [%clk 00:15:44]} 14.
Qc2 {[%emt 00:00:53] [%clk 00:07:21]} Bb4+ {[%emt 00:00:09] [%clk 00:15:45]} 15.
N1d2 {[%emt 00:00:13] [%clk 00:07:18]} exd4 {[%emt 00:00:52] [%clk 00:15:04]}
16. a3 {[%emt 00:00:31] [%clk 00:06:57]} Bxd2+ {[%emt 00:00:29] [%clk 00:14:44]}
17. Nxd2 {[%emt 00:00:02] [%clk 00:07:05]} Qb5 {[%emt 00:00:09] [%clk 00:14:45]}
18. O-O-O {[%emt 00:00:10] [%clk 00:07:05]} Rd7 {[%emt 00:00:37] [%clk
00:14:18]} 19. Kb1 {[%emt 00:00:30] [%clk 00:06:45]} Qe2 {[%emt 00:00:47] [%clk
00:13:42]} 20. Qxc6+ {[%emt 00:00:54] [%clk 00:06:01]} Rc7 {[%emt 00:00:02]
[%clk 00:13:50]} 21. Qa8+ {[%emt 00:00:02] [%clk 00:06:10]} Kd7 {[%emt 00:00:01]
[%clk 00:13:58]} 22. Qxh8 {[%emt 00:00:02] [%clk 00:06:18]} Qxf2 {[%emt
00:00:59] [%clk 00:13:09]} 23. Qxg7 {[%emt 00:00:12] [%clk 00:06:15]} Ke6 {[%emt
00:01:36] [%clk 00:11:43]} 24. Qg3 {[%emt 00:00:21] [%clk 00:06:04]} Qxg3 {[%emt
00:00:21] [%clk 00:11:33]} 25. hxg3 {[%emt 00:00:01] [%clk 00:06:12]} Bd3+
{[%emt 00:00:08] [%clk 00:11:35]} 26. Ka2 {[%emt 00:00:58] [%clk 00:05:24]} Bc2
{[%emt 00:00:15] [%clk 00:11:30]} 27. Nb3 {[%emt 00:00:20] [%clk 00:05:15]} Bxd1
{[%emt 00:00:11] [%clk 00:11:29]} 28. Rxd1 {[%emt 00:00:08] [%clk 00:05:16]} Nh5
{[%emt 00:00:20] [%clk 00:11:19]} 29. Nxd4+ {[%emt 00:00:05] [%clk 00:05:21]}
Kf6 {[%emt 00:00:09] [%clk 00:11:21]} 30. Nf5 {[%emt 00:00:07] [%clk 00:05:23]}
Rc2 {[%emt 00:00:08] [%clk 00:11:24]} 31. Rd6+ {[%emt 00:00:57] [%clk 00:04:36]}
Kg5 {[%emt 00:00:06] [%clk 00:11:28]} 32. f4+ {[%emt 00:00:03] [%clk 00:04:43]}
Kg4 {[%emt 00:00:03] [%clk 00:11:35]} 33. Ne3+ {[%emt 00:00:01] [%clk 00:04:41]}
1-0

[Site "Europe Echecs"]